lending/lending_fUSD_20260222
["ID","MTS","AMOUNT","RATE_DAILY","PERIOD"]
[406358335,1771791039853,-151.73570236,0.00035995,2]
[406358336,1771791039861,-842.2155237,0.00035995,2]
[406358337,1771791039870,-150.0,0.0003643,2]
[406358338,1771791039879,-262.58087745,0.00037302,2]
[406358339,1771791039888,-169.24,0.00037381,2]
[406358340,1771791039898,-6040.39,0.00038,60]
[406358341,1771791039908,-150.0,0.00038252,2]
[406358342,1771791039917,-172.82,0.0003872,2]
[406358343,1771791039927,-2241.0015,0.00038888,30]
[406358344,1771791039937,-573.43096773,0.00039089,2]
[406358345,1771791039946,-2086.81,0.000391,14]
[406358346,1771791039956,-842.2155237,0.00039111,2]
[406358347,1771791039966,-150.0,0.00039129,7]
[406358348,1771791039976,-150.0,0.00039129,7]
[406358349,1771791039985,-150.0,0.00039129,7]
[406358350,1771791039995,-150.0,0.00039129,7]
[406358351,1771791040006,-150.0,0.00039129,7]
[406358352,1771791040016,-150.0,0.00039129,7]
[406358353,1771791040025,-150.0,0.00039129,7]
[406358354,1771791040034,-150.0,0.00039129,7]
[406358355,1771791040043,-150.0,0.00039129,7]
[406358356,1771791040053,-150.0,0.00039129,7]
[406358357,1771791040062,-150.0,0.00039129,7]
[406358358,1771791040071,-150.0,0.00039129,7]
[406358360,1771791040080,-150.0,0.00039129,7]
[406358361,1771791040089,-154.972,0.00039129,7]
[406358362,1771791040098,-169.24,0.00039233,2]
[406358363,1771791040107,-299.52406183,0.00039715,2]
[406358364,1771791040117,-10000.0,0.0004,120]
[406358365,1771791040126,-10000.0,0.0004,120]
[406358366,1771791040136,-749.0,0.0004,30]
[406358367,1771791040148,-745.0,0.0004,30]
[406358368,1771791040158,-745.0,0.0004,30]
[406358369,1771791040167,-779.53158431,0.00040008,20]
[406358370,1771791040176,-150.0,0.00040165,2]
[406358371,1771791040187,-709.02276778,0.00040303,30]
[406358372,1771791040197,-1135.173,0.0004036,57]
[406358373,1771791040206,-753.0,0.00040434,30]
[406358374,1771791040216,-744.0,0.00040434,30]
[406358375,1771791040227,-741.0,0.00040434,30]
[406358376,1771791040237,-306.05328416,0.00040881,2]
[406358377,1771791040246,-300.0,0.00040881,2]
[406358378,1771791040255,-306.05328416,0.00040918,2]
[406358379,1771791040264,-300.0,0.00040918,2]
[406358380,1771791040274,-151.0,0.00040947,14]
[406358381,1771791040283,-90480.0,0.0004095,60]
[406358382,1771791040293,-10000.0,0.00041,120]
[406358383,1771791040303,-9881.94,0.00041,120]
[406358384,1771791040312,-500.0,0.00041015,2]
[406358385,1771791040322,-372.93950921,0.00041015,2]
[406358386,1771791040331,-200.0,0.00041018,7]
[406358387,1771791040341,-200.0,0.00041018,7]
[406358388,1771791040350,-200.0,0.00041018,7]
[406358389,1771791040360,-200.0,0.00041018,7]
[406358390,1771791040369,-200.0,0.00041018,7]
[406358391,1771791040378,-200.0,0.0004102,7]
[406358392,1771791040388,-200.0,0.0004102,7]
[406358393,1771791040397,-200.0,0.0004102,7]
[406358394,1771791040406,-262.58087745,0.00041323,28]
[406358395,1771791040415,-500.0,0.00041612,120]
[406358396,1771791040424,-200.0,0.00041612,120]
[406358397,1771791040434,-159.68,0.000417,30]
[406358398,1771791040443,-9999.98,0.00042,120]
[406358399,1771791040585,-161.29,0.00042122,14]
[406358400,1771791040596,-150.0,0.00042173,120]
[406358401,1771791040608,-573.43096773,0.00042217,15]
[406358402,1771791040618,-842.2155237,0.00042228,15]
[406358403,1771791040630,-90480.0,0.000423,60]
[406358404,1771791040640,-2086.81,0.000423,14]
[406358405,1771791040651,-200.0,0.00043212,120]
[406358406,1771791040660,-500.0,0.00043212,7]
[406358407,1771791040670,-500.0,0.00043212,7]
[406358408,1771791040680,-500.0,0.00043212,7]
[406358409,1771791040691,-500.0,0.00043212,7]
[406358410,1771791040701,-282.59,0.00043452,120]
[406358411,1771791040712,-2000.0,0.000436,2]
[406358413,1771791040721,-90480.0,0.0004365,60]
[406358415,1771791040730,-500.0,0.00043707,60]
[406358417,1771791040741,-303.81833795,0.00043707,60]
[406358418,1771791040750,-500.0,0.00043712,120]
[406358419,1771791040760,-1586.20666924,0.0004399,2]
[406358420,1771791040770,-150.0,0.00044,57]
[406358421,1771791040779,-161.29,0.00044236,14]
[406358422,1771791040789,-150.0,0.00044281,120]
[406358423,1771791040798,-730.0,0.00044382,30]
[406358424,1771791040807,-150.0,0.000444,120]
[406358425,1771791040817,-150.0,0.000444,120]
[406358426,1771791040827,-150.0,0.000444,120]
[406358427,1771791040836,-150.0,0.000444,120]
[406358428,1771791040846,-181.15,0.00044618,30]
[406358429,1771791040858,-243.63605972,0.00044758,7]
[406358430,1771791040867,-500.0,0.00044803,60]
[406358431,1771791040879,-209.604307,0.00044812,120]
[406358432,1771791040888,-243.63605972,0.00044867,7]
[406358433,1771791040898,-243.63605972,0.00044984,7]
[406358434,1771791040907,-243.63605972,0.00044984,7]
[406358435,1771791040918,-2013.46,0.00044986,2]
[406358436,1771791040929,-90480.0,0.00045,60]
[406358437,1771791040940,-62716.66797447,0.00045,120]
[406358438,1771791040949,-2086.81,0.00045,2]
[406358439,1771791040959,-1044.11858127,0.00045,30]
[406358440,1771791040969,-2013.46,0.00045051,2]
[406358441,1771791040979,-2013.46,0.00045116,2]
[406358442,1771791040989,-2013.46,0.00045181,2]
[406358443,1771791040998,-2013.46,0.00045246,2]
[406358444,1771791041008,-276.43,0.00045255,120]
[406358445,1771791041017,-150.0,0.000453,88]
[406358446,1771791041027,-2086.81,0.000453,14]
[406358447,1771791041037,-2013.46,0.0004531,2]
[406358448,1771791041046,-800.0,0.00045315,17]
[406358449,1771791041058,-800.0,0.00045315,17]
[406358450,1771791041069,-800.0,0.00045315,17]
[406358451,1771791041078,-800.0,0.00045315,17]
[406358452,1771791041089,-800.0,0.00045315,17]
[406358453,1771791041099,-800.0,0.00045315,17]
[406358454,1771791041108,-800.0,0.00045315,17]
[406358455,1771791041117,-800.0,0.00045315,17]
[406358456,1771791041127,-800.0,0.00045315,33]
[406358457,1771791041137,-151.73570236,0.00045344,19]
[406358458,1771791041150,-842.2155237,0.00045344,15]
[406358459,1771791041161,-573.43096773,0.00045344,15]
[406358460,1771791041171,-299.52406183,0.00045344,2]
[406358461,1771791041189,-262.58087745,0.00045344,28]
[406358462,1771791041202,-500.0,0.0004535,30]
[406358463,1771791041212,-291.52616731,0.0004535,30]
[406358464,1771791041222,-500.0,0.0004535,30]
[406358465,1771791041232,-518.5,0.0004535,30]
[406358466,1771791041241,-537.6845,0.0004535,30]
[406358467,1771791041250,-557.5788265,0.0004535,30]
[406358468,1771791041259,-578.20924308,0.0004535,30]
[406358469,1771791041269,-599.60298507,0.0004535,30]
[406358470,1771791041278,-621.78829552,0.0004535,30]
[406358471,1771791041288,-644.79446246,0.0004535,30]
[406358472,1771791041296,-668.65185757,0.0004535,30]
[406358473,1771791041305,-693.3919763,0.0004535,30]
[406358474,1771791041314,-719.04747942,0.0004535,30]
[406358475,1771791041324,-745.65223616,0.0004535,30]
[406358476,1771791041333,-773.2413689,0.0004535,30]
[406358477,1771791041343,-801.85129955,0.0004535,30]
[406358478,1771791041352,-831.51979763,0.0004535,30]
[406358479,1771791041362,-862.28603014,0.0004535,30]
[406358480,1771791041371,-894.19061326,0.0004535,30]
[406358481,1771791041380,-927.27566595,0.0004535,30]
[406358482,1771791041390,-961.58486559,0.0004535,30]
[406358483,1771791041399,-997.16350561,0.0004535,30]
[406358484,1771791041409,-500.0,0.0004535,30]
[406358485,1771791041419,-735.0,0.00045351,30]
[406358486,1771791041429,-3236.4935,0.00045351,2]
[406358487,1771791041439,-147674.0423062,0.00045351,2]
[406358488,1771791041449,-1106.0,0.00045351,30]
[406358489,1771791041458,-884.879784,0.00045351,2]
[406358490,1771791041468,-2013.46,0.00045375,2]
[406358491,1771791041478,-152.59,0.00045385,120]
[406358492,1771791041488,-150.93,0.000454,14]
[406358493,1771791041499,-549.70354156,0.00045421,120]
[406358494,1771791041508,-2013.46,0.0004544,2]
[406358495,1771791041518,-151.0,0.00045441,120]
[406358496,1771791041528,-10179.41725522,0.00045444,2]
[406358497,1771791041539,-7125.59207866,0.00045444,4]
[406358498,1771791041555,-75109.09288005,0.00045444,57]
[406358499,1771791041565,-151.0,0.00045444,7]
[406358500,1771791041575,-151.0,0.00045444,7]
[406358501,1771791041585,-151.0,0.00045444,7]
[406358502,1771791041594,-151.0,0.00045444,7]
[406358503,1771791041602,-285.355788,0.00045444,7]
[406358504,1771791041612,-844151.92886282,0.00045444,10]
[406358505,1771791041713,-6804.8091745,0.00045444,10]
[406358506,1771791041725,-255.81419352,0.00045444,10]
[406358507,1771791041737,-258.6,0.00045444,10]
[406358508,1771791041748,-383.736,0.00045444,10]
[406358509,1771791041760,-3399653.22492053,0.00045444,10]
[406358510,1771791041771,-5201450.59136067,0.00045444,10]
[406358511,1771791041787,-389.58,0.00039129,30]
[406358512,1771791041798,-153.92,0.00039129,30]
[406358513,1771791041808,-5531.30993896,0.00045444,10]
[406358523,1771791043422,-972.99680794,0.00017297,2]
[406358524,1771791043438,-27.00319206,0.00017297,2]
[406358525,1771791043447,-317.69680794,0.00045,120]
[406358539,1771791045904,-1012.96575,0.00044081,2]
[406358540,1771791045961,-44.50536283,0.00044081,2]
[406358541,1771791045971,-350.51338764,0.00045,120]
[406358622,1771792232013,-1309.68764366,0.00017,2]
[406358625,1771792232025,-45806.92903595,0.00017,2]
[406358627,1771792232036,-250.0,0.00017445,2]
[406358628,1771792232045,-200.03451288,0.0001789,2]
[406358629,1771792232055,-193.48263084,0.00017899,3]
[406358630,1771792232070,-229.75826783,0.00017899,2]
[406358631,1771792232080,-5171.90230552,0.000179,2]
[406358632,1771792232092,-343.29292514,0.000179,2]
[406358633,1771792232104,-326.03172292,0.000179,2]
[406358634,1771792232117,-706.82415317,0.000179,2]
[406358635,1771792232131,-864.06206667,0.000179,2]
[406358636,1771792232143,-167.82653988,0.000179,2]
[406358637,1771792232154,-257.0163137,0.000179,2]
[406358638,1771792232166,-2242.9836863,0.000179,2]
[406358639,1771792232177,-263.6441,0.000179,2]
[406358640,1771792232187,-23801.52234219,0.000179,2]
[406358641,1771792232199,-482.13,0.000179,2]
[406358643,1771792232209,-827.08473548,0.000179,2]
[406358646,1771792232226,-700.36150344,0.000179,2]
[406358648,1771792232239,-856.52330817,0.000179,2]
[406358650,1771792232250,-301.8314,0.000179,2]
[406358653,1771792232264,-5952.13234808,0.000179,2]
[406358655,1771792232275,-267.37735194,0.000179,2]
[406358662,1771792238138,-229.75826776,0.00017899,2]
[406358663,1771792238148,-242.11539569,0.000179,2]
[406358664,1771792238171,-369.35001475,0.000179,2]
[406358665,1771792238182,-1715997.1386712,0.000179,2]
[406358666,1771792238196,-6132.4370438,0.000179,2]
[406358681,1771792240249,-229.75826776,0.00017899,2]
[406358683,1771792240258,-1744069.99588526,0.000179,2]
[406358684,1771792240268,-3457150.83720765,0.00018,2]
[406358685,1771792240416,-1779.11409296,0.00018,2]
[406358686,1771792240428,-670.59943,0.00018,2]
[406358687,1771792240439,-1741.24,0.00018,2]
[406358688,1771792240449,-277.1987,0.00018,2]
[406358699,1771792243168,-2863.56394888,0.00018,2]
[406358700,1771792243184,-1527.9736624,0.00018,2]
[406358701,1771792243195,-443.4506406,0.00018,2]
[406358702,1771792243208,-41385.8502866,0.00018,2]
[406358703,1771792243222,-399.99999704,0.00018,2]
[406358704,1771792243234,-399.99999982,0.00018,2]
[406358705,1771792243391,-6844.15336338,0.00018,2]
[406358706,1771792243403,-458.21980043,0.00018,2]
[406358707,1771792243414,-649.48481584,0.00018,2]
[406358708,1771792243426,-330.235,0.00018,2]
[406358709,1771792243500,-1365.94,0.00018,2]
[406358749,1771792246026,-229.75826776,0.00017899,2]
[406358750,1771792246036,-3635.86028112,0.00018,2]
[406358751,1771792246047,-14065.43055766,0.00018,2]
[406358752,1771792246244,-1061.91940132,0.00018,2]
[406358777,1771793255003,10000.0,0.00015001,2]
[406358985,1771793432272,-166.66,0.00016241,2]
[406358986,1771793432283,-278.617552,0.00016403,7]
[406358987,1771793432294,-87.48013485,0.00016438,2]
[406358988,1771793432347,-112.51986515,0.00016438,2]
[406358989,1771793432359,-146.13662385,0.00016438,2]
[406358990,1771793432373,-632.866641,0.00016438,2]
[406358991,1771793432404,-787.27893922,0.00016438,2]
[406358996,1771793438474,-2165.52779593,0.00016438,2]
[406358997,1771793438486,-300.0,0.00016445,2]
[406358998,1771793438498,-10059.61,0.00016446,2]
[406358999,1771793438509,-3418.23,0.00016447,2]
[406359000,1771793438521,-1000.0,0.00016477,2]
[406359001,1771793438533,-166.66,0.00016583,2]
[406359002,1771793438543,-894.11,0.00016628,2]
[406359003,1771793438553,-613.66,0.00016683,2]
[406359004,1771793438564,-1852.42,0.00016852,2]
[406359005,1771793438575,-166.66,0.00016925,2]
[406359006,1771793438585,-500.0,0.00017,2]
[406359007,1771793438595,-169.24,0.00017024,2]
[406359008,1771793438606,-164.1130484,0.000172,2]
[406359009,1771793438616,-516.08787102,0.000172,2]
[406359010,1771793438626,-295.41968388,0.000172,2]
[406359011,1771793438637,-166.66,0.00017267,2]
[406359013,1771793438648,-516.08787095,0.00017278,2]
[406359015,1771793438658,-151.73570238,0.000173,2]
[406359017,1771793438669,-1692880.91669864,0.000173,2]
[406359058,1771793440473,-1807119.08330136,0.000173,2]
[406359059,1771793440484,-2500.0,0.000173,2]
[406359060,1771793440494,-1500.0,0.00017306,2]
[406359061,1771793440504,-164.1130484,0.00017324,2]
[406359062,1771793440514,-295.41968388,0.0001734,2]
[406359063,1771793440525,-516.08787095,0.00017356,2]
[406359064,1771793440534,-286.78032294,0.00017399,2]
[406359065,1771793440544,-500.0,0.00017399,2]
[406359066,1771793440554,-500.0,0.00017399,2]
[406359067,1771793440564,-500.0,0.00017399,2]
[406359068,1771793440574,-500.0,0.00017399,2]
[406359069,1771793440584,-500.0,0.00017399,2]
[406359070,1771793440594,-500.0,0.00017399,2]
[406359071,1771793440604,-500.0,0.00017399,2]
[406359072,1771793440614,-500.0,0.00017399,2]
[406359073,1771793440625,-500.0,0.00017399,2]
[406359074,1771793440635,-500.0,0.00017399,2]
[406359075,1771793440645,-500.0,0.00017399,2]
[406359076,1771793440655,-500.0,0.00017399,2]
[406359077,1771793440665,-500.0,0.00017399,2]
[406359078,1771793440674,-500.0,0.00017399,2]
[406359079,1771793440684,-500.0,0.00017399,2]
[406359080,1771793440694,-500.0,0.00017399,2]
[406359081,1771793440704,-500.0,0.00017399,2]
[406359082,1771793440714,-500.0,0.00017399,2]
[406359083,1771793440724,-500.0,0.00017399,2]
[406359084,1771793440733,-500.0,0.00017399,2]
[406359085,1771793440743,-500.0,0.00017399,2]
[406359086,1771793440753,-500.0,0.00017399,2]
[406359087,1771793440762,-500.0,0.00017399,2]
[406359088,1771793440771,-500.0,0.00017399,2]
[406359089,1771793440782,-500.0,0.00017399,2]
[406359090,1771793440793,-500.0,0.00017399,2]
[406359091,1771793440803,-500.0,0.00017399,2]
[406359092,1771793440813,-500.0,0.00017399,2]
[406359093,1771793440824,-500.0,0.00017399,2]
[406359094,1771793440835,-500.0,0.00017399,2]
[406359095,1771793440846,-500.0,0.00017399,2]
[406359096,1771793440856,-500.0,0.00017399,2]
[406359097,1771793440867,-500.0,0.00017399,2]
[406359098,1771793440877,-500.0,0.00017399,2]
[406359099,1771793440889,-500.0,0.00017399,2]
[406359100,1771793440900,-600.78300118,0.00017399,2]
[406359101,1771793440913,-623.4084234,0.00017399,2]
[406359102,1771793440924,-150.0,0.00017399,2]
[406359103,1771793440936,-500.0,0.00017399,2]
[406359104,1771793440947,-500.0,0.00017399,2]
[406359105,1771793440958,-500.0,0.00017399,2]
[406359106,1771793440968,-500.0,0.00017399,2]
[406359107,1771793440978,-500.0,0.00017399,2]
[406359108,1771793440990,-500.0,0.00017399,2]
[406359109,1771793441001,-248.23983097,0.00017399,2]
[406359110,1771793441011,-188.78753963,0.00017399,2]
[406359111,1771793441021,-487.0,0.000174,2]
[406359112,1771793441032,-487.0,0.000174,2]
[406359113,1771793441043,-487.0,0.000174,2]
[406359114,1771793441054,-487.0,0.000174,2]
[406359115,1771793441064,-487.0,0.000174,2]
[406359116,1771793441075,-487.0,0.000174,2]
[406359117,1771793441085,-589.34,0.000174,2]
[406359118,1771793441096,-516.08787095,0.00017433,2]
[406359119,1771793441106,-164.1130484,0.00017449,2]
[406359120,1771793441120,-295.41968388,0.0001748,2]
[406359121,1771793441131,-908.138,0.00017499,2]
[406359122,1771793441141,-164.139,0.00017499,2]
[406359123,1771793441151,-98603.28405727,0.000175,2]
[406359124,1771793441161,-516.08787095,0.00017511,2]
[406359125,1771793441172,-164.1130484,0.00017573,2]
[406359126,1771793441182,-516.08787095,0.00017589,2]
[406359127,1771793441192,-166.66,0.00017609,2]
[406359128,1771793441202,-295.41968388,0.0001762,2]
[406359129,1771793441212,-516.08787095,0.00017667,2]
[406359130,1771793441223,-1000.0,0.0001769,2]
[406359131,1771793441233,-164.1130484,0.00017697,2]
[406359132,1771793441451,-516.08787095,0.00017744,2]
[406359133,1771793441468,-295.41968388,0.0001776,2]
[406359134,1771793441483,-618367.657,0.0001779,2]
[406359135,1771793441494,-639.16972143,0.00017808,2]
[406359136,1771793441506,-639.16972143,0.00017808,2]
[406359137,1771793441516,-639.16972143,0.00017808,2]
[406359138,1771793441525,-639.16972143,0.00017808,2]
[406359139,1771793441535,-639.16972143,0.00017808,2]
[406359140,1771793441545,-639.16972143,0.00017808,2]
[406359141,1771793441555,-639.16972143,0.00017808,2]
[406359142,1771793441565,-639.16972143,0.00017808,2]
[406359143,1771793441574,-639.16972143,0.00017808,2]
[406359144,1771793441583,-639.16972143,0.00017808,2]
[406359145,1771793441593,-639.16972143,0.00017808,2]
[406359146,1771793441603,-639.16972143,0.00017808,2]
[406359147,1771793441612,-639.16972143,0.00017808,2]
[406359148,1771793441622,-639.16972143,0.00017808,2]
[406359149,1771793441632,-639.16972143,0.00017808,2]
[406359150,1771793441641,-639.16972143,0.00017808,2]
[406359151,1771793441651,-639.16972143,0.00017808,2]
[406359152,1771793441660,-639.16972143,0.00017808,2]
[406359153,1771793441670,-639.16972143,0.00017808,2]
[406359154,1771793441680,-651.95311585,0.00017808,2]
[406359155,1771793441690,-651.95311585,0.00017808,2]
[406359156,1771793441699,-651.95311585,0.00017808,2]
[406359157,1771793441709,-651.95311585,0.00017808,2]
[406359158,1771793441718,-651.95311585,0.00017808,2]
[406359159,1771793441727,-651.95311585,0.00017808,2]
[406359160,1771793441737,-651.95311585,0.00017808,2]
[406359161,1771793441746,-651.95311585,0.00017808,2]
[406359162,1771793441755,-651.95311585,0.00017808,2]
[406359163,1771793441765,-651.95311585,0.00017808,2]
[406359164,1771793441774,-164.1130484,0.00017822,2]
[406359165,1771793441784,-516.08787095,0.00017822,2]
[406359166,1771793441794,-5000.0,0.00017865,2]
[406359167,1771793441803,-448.1212955,0.00017865,2]
[406359168,1771793441813,-250.0,0.00017865,2]
[406359169,1771793441823,-250.0,0.00017865,2]
[406359170,1771793441832,-250.0,0.00017865,2]
[406359171,1771793441842,-500.0,0.00017899,2]
[406359172,1771793441851,-500.0,0.00017899,2]
[406359173,1771793441861,-225.18,0.00017899,2]
[406359174,1771793441871,-789.8085489,0.000179,2]
[406359175,1771793441880,-295.41968388,0.000179,2]
[406359176,1771793441890,-516.08787095,0.000179,2]
[406359177,1771793441899,-116707.4486558,0.00017944,2]
[406359178,1771793441908,-3082.9999699,0.00017944,2]
[406359179,1771793441919,-164.1130484,0.00017946,2]
[406359180,1771793441929,-166.66,0.00017951,2]
[406359181,1771793441939,-169.24,0.0001796,2]
[406359182,1771793441950,-420.0,0.00017972,2]
[406359183,1771793441961,-150.0,0.00017991,2]
[406359184,1771793441972,-150.0,0.00017991,2]
[406359185,1771793441982,-158.03404655,0.00017991,2]
[406359186,1771793441993,-150.0,0.00017991,2]
[406359187,1771793442003,-500.0,0.00017991,2]
[406359188,1771793442012,-150.0,0.00017991,2]
[406359189,1771793442022,-500.0,0.00017991,2]
[406359190,1771793442032,-175.20435702,0.00017991,2]
[406359191,1771793442042,-150.0,0.00017991,2]
[406359192,1771793442053,-150.0,0.00017991,2]
[406359193,1771793442064,-151.0,0.00017997,2]
[406359194,1771793442073,-151.0,0.00017997,2]
[406359195,1771793442084,-1915011.61019616,0.00018,2]
[406359196,1771793442093,-2220.73980545,0.00018,2]
[406359197,1771793442116,-109790.91786731,0.00018,2]
[406359198,1771793442128,-461440.09059826,0.00018,2]
[406359210,1771793443443,-495.676496,0.00018,2]
[406359211,1771793443455,-1788.0,0.00018,2]
[406359212,1771793443498,-17538.53571918,0.00018,2]
[406359213,1771793443569,-318.9584,0.00018,2]
[406359214,1771793443766,-343.10411232,0.00018,2]
[406359245,1771794277366,158.67,0.0001206,2]
[406359246,1771794277596,158.67,0.00012328,2]
[406359247,1771794278013,158.67,0.00012596,2]
[406359248,1771794278243,158.67,0.00012864,2]
[406359249,1771794278461,158.67,0.00013132,2]
[406359250,1771794278677,158.67,0.000134,2]
[406359251,1771794278887,158.67,0.00013668,2]
[406359252,1771794279109,158.67,0.00013936,2]
[406359253,1771794279326,158.67,0.00014204,2]
[406359254,1771794279553,158.67,0.00014472,2]
[406359255,1771794279783,158.67,0.0001474,2]
[406359305,1771794631575,-158.67,0.00015008,2]
[406359306,1771794631585,-250.0,0.00015142,2]
[406359307,1771794631595,-158.67,0.00015276,2]
[406359308,1771794631604,-177.764728,0.00015334,7]
[406359310,1771794631614,-158.67,0.00015544,2]
[406359312,1771794631623,-208.34312937,0.00015675,7]
[406359314,1771794631634,-73.08873963,0.00015675,7]
[406359315,1771794631643,-181.19,0.00015756,2]
[406359316,1771794631653,-158.67,0.00015812,2]
[406359317,1771794631662,-247.198436,0.00015984,7]
[406359319,1771794631672,-172.82,0.00016042,2]
[406359321,1771794631682,-158.67,0.0001608,2]
[406359323,1771794631692,-150.0,0.00016132,2]
[406359324,1771794631701,-500.0,0.00016141,2]
[406359325,1771794631711,-383.0,0.0001624,2]
[406359326,1771794631720,-708.15313477,0.00016317,2]
[406359328,1771794631729,-248.07,0.00016404,2]
[406359330,1771794631739,-700.0,0.000165,6]
[406359332,1771794631748,-400.0,0.000165,6]
[406359334,1771794631757,-300.0,0.000165,6]
[406359336,1771794631766,-550.0,0.00016508,2]
[406359338,1771794631775,-300.0,0.00016508,2]
[406359340,1771794631788,-250.0,0.00016509,2]
[406359342,1771794631798,-448.1212955,0.00016509,2]
[406359344,1771794631807,-5000.0,0.00016509,2]
[406359346,1771794631816,-250.0,0.00016509,2]
[406359348,1771794631825,-5000.0,0.00016509,2]
[406359350,1771794631834,-500.0,0.00016509,2]
[406359352,1771794631843,-884.0,0.00016543,2]
[406359354,1771794631853,-1106.0,0.00016576,2]
[406359356,1771794631862,-1500.0,0.000166,6]
[406359358,1771794631871,-900.0,0.000166,6]
[406359360,1771794631880,-600.0,0.000166,6]
[406359362,1771794631890,-2300.0,0.000167,6]
[406359364,1771794631899,-1300.0,0.000167,6]
[406359366,1771794631909,-1000.0,0.000167,6]
[406359372,1771794632071,-3100.0,0.000168,6]
[406359373,1771794632082,-1800.0,0.000168,6]
[406359374,1771794632091,-1300.0,0.000168,6]
[406359375,1771794632101,-250.90005908,0.00016823,2]
[406359376,1771794632111,-150.0,0.00016823,2]
[406359377,1771794632120,-150.0,0.00016823,2]
[406359378,1771794632131,-150.0,0.00016823,2]
[406359379,1771794632142,-150.0,0.00016823,2]
[406359380,1771794632152,-158.03404655,0.00016823,2]
[406359381,1771794632161,-500.0,0.00016823,2]
[406359382,1771794632171,-500.0,0.00016823,2]
[406359383,1771794632180,-150.0,0.00016823,2]
[406359384,1771794632190,-150.0,0.00016823,2]
[406359385,1771794632200,-175.20435702,0.00016823,2]
[406359386,1771794632210,-150.0,0.00016823,2]
[406359387,1771794632219,-150.0,0.00016823,2]
[406359388,1771794632229,-150.0,0.00016823,2]
[406359389,1771794632241,-150.0,0.00016823,2]
[406359390,1771794632251,-150.0,0.00016823,2]
[406359391,1771794632261,-150.0,0.00016825,2]
[406359392,1771794632271,-150.0,0.00016878,2]
[406359393,1771794632280,-150.0,0.00016878,2]
[406359394,1771794632289,-256.24263188,0.00016878,2]
[406359395,1771794632299,-500.0,0.00016878,2]
[406359396,1771794632308,-500.0,0.00016878,2]
[406359397,1771794632319,-150.0,0.00016878,2]
[406359398,1771794632328,-150.0,0.00016878,2]
[406359399,1771794632337,-150.0,0.00016878,2]
[406359400,1771794632347,-150.0,0.00016878,2]
[406359401,1771794632356,-150.0,0.00016878,2]
[406359402,1771794632366,-279.92496284,0.0001688,2]
[406359403,1771794632375,-3800.0,0.000169,6]
[406359404,1771794632384,-2200.0,0.000169,6]
[406359405,1771794632395,-1700.0,0.000169,6]
[406359406,1771794632404,-500.0,0.000169,6]
[406359407,1771794632414,-168.8532676,0.000169,2]
[406359408,1771794632423,-199.32966182,0.000169,2]
[406359409,1771794632432,-287.38563793,0.00016933,2]
[406359410,1771794632442,-150.0,0.00016933,2]
[406359411,1771794632451,-500.0,0.00016933,2]
[406359412,1771794632461,-500.0,0.00016933,2]
[406359413,1771794632471,-150.0,0.00016933,2]
[406359414,1771794632482,-200.0,0.00016933,2]
[406359415,1771794632492,-150.0,0.00016933,2]
[406359416,1771794632503,-150.0,0.00016933,2]
[406359417,1771794632512,-150.0,0.00016933,2]
[406359418,1771794632522,-151.0,0.00016987,2]
[406359419,1771794632532,-151.0,0.00016987,2]
[406359420,1771794632542,-150.0,0.00016987,2]